Cogmind - Beta 16.1 @@@ ROGUE MODE // 2026.03.11 @ 23:13:58 Player: TheSkyeDoctor Result: Destroyed by P-80 Master with Gamma Rifle Performance ------------- Evolutions (6) 3000 Regions Visited (13) 2600 Robots Destroyed (26) 130 Value Destroyed (798) 798 Prototype IDs (22) 440 Alien Tech Used (0) 0 Bonus (2969) 2969 TOTAL SCORE: 9937 Bonus ------- Follower Combat Kills 1969 Met Warlord at Base 500 MAIN.C Attacked Warlord 500 Cogmind --------- Core Integrity 0/1150 Matter 300/300 Energy 100/100 System Corruption 5% Temperature Cool (0) Movement Flying (174) Ox1 Location -4/Warlord Parts ------- > --- POWER (2) -------- (None) > --- PROPULSION (4) --- Flying Impulse-VTOL Exoskeleton > --- UTILITY (7) ------ Armored Scrap Engine High-capacity Storage Unit Advanced Targeting Computer Authchip [R/Combat] > --- WEAPON (6) ------- (None) > --- INVENTORY (20) --- Improved Heat Sink Advanced Cooling System Compact Battery (200) High-capacity Matter Pod (200) High-capacity Matter Pod (200) Advanced Assault Cannon Missile Launcher Datajack Improved Datajack Signal Generator Peak State ------------ > --- POWER ------------ Meta Core > --- PROPULSION ------- Flying Impulse-VTOL Exoskeleton Wheel Compact Wheel > --- UTILITY ---------- Armored Scrap Engine High-capacity Storage Unit Gravity Neutralizer Improved Terrain Scanner Terrain Scan Processor > --- WEAPON ----------- 1B-0RG's Assimilator Heavy Flail > --- INVENTORY -------- Wheel Compact Battery High-capacity Matter Pod High-capacity Matter Pod High-capacity Matter Pod High-capacity Matter Pod Advanced Targeting Computer Advanced Targeting Computer Light Armor Plating Hacking Suite Authchip [R/Combat] Subdweller Beam Cannon Heavy Battle Rifle Improved Light Cannon Missile Launcher Datajack [Rating: 121] Favorites ----------- Power Meta Core Engine Ion Engine Power Core Meta Core Propulsion Constructs Treads Light Treads Wheel Compact Wheel Flight Unit Constructs Utility High-capacity Storage Unit Device Gravity Neutralizer Storage High-capacity Storage Unit Processor Advanced Targeting Computer Hackware Authchip [R/Combat] Protection Light Armor Plating Weapon Heavy Flail Energy Gun Constructs Ballistic Gun Constructs Ballistic Cannon Improved Light Cannon Launcher Thermoblaster Impact Weapon Heavy Flail Special Melee Weapon 1B-0RG's Assimilator Build | -11 -10 -10 -8 -8 -8 -6 -5 -5 -5 -4 -4 -4 -4 ------- Run | Yrd Mat Sub Mat Sto Rec Fac Fac Upp Upp Fac Upp Upp War Slots Evolved 12 | . . . 4 . . 4 2 . . 2 . . . Power 1 | . . . . . . . . . . 1 . . . Propulsion 2 | . . . . . . . 1 . . 1 . . . Utility 5 | . . . . . . 4 1 . . . . . . Weapon 4 | . . . 4 . . . . . . . . . . Parts Attached 39 | 7 3 6 3 4 3 3 3 . . 2 . 1 4 Power 2 | 1 . 1 . . . . . . . . . . . Engine 1 | 1 . . . . . . . . . . . . . Core 1 | . . 1 . . . . . . . . . . . Reactor . | . . . . . . . . . . . . . . Propulsion 7 | 2 . 1 2 . 2 . . . . . . . . Treads 3 | 2 . 1 . . . . . . . . . . . Leg . | . . . . . . . . . . . . . . Wheel 4 | . . . 2 . 2 . . . . . . . . Hover . | . . . . . . . . . . . . . . Flight . | . . . . . . . . . . . . . . Utility 20 | 2 1 3 . 3 1 3 3 . . 2 . 1 1 Device 6 | 1 . 1 . . 1 2 . . . . . 1 . Storage 6 | 1 1 1 . 2 . . 1 . . . . . . Processor 4 | . . . . . . 1 1 . . 1 . . 1 Hackware 1 | . . . . . . . . . . 1 . . . Protection 3 | . . 1 . 1 . . 1 . . . . . . Artifact . | . . . . . . . . . . . . . . Weapon 10 | 2 2 1 1 1 . . . . . . . . 3 Energy Gun 1 | 1 . . . . . . . . . . . . . Energy Cannon . | . . . . . . . . . . . . . . Ballistic Gun 1 | 1 . . . . . . . . . . . . . Ballistic Cannon 2 | . 1 1 . . . . . . . . . . . Launcher 2 | . . . . . . . . . . . . . 2 Special Weapon . | . . . . . . . . . . . . . . Impact Weapon 3 | . 1 . . 1 . . . . . . . . 1 Slashing Weapon . | . . . . . . . . . . . . . . Piercing Weapon . | . . . . . . . . . . . . . . Special Melee Weapon 1 | . . . 1 . . . . . . . . . . Unidentified Prototypes 4 | . . . 1 . . 2 . . . . . . 1 Parts Lost 35 | . . 2 2 4 1 . 2 . . 3 . 6 15 Power 5 | . . 1 . . . . . . . 1 . 1 2 Propulsion 7 | . . . 2 1 1 . . . . . . . 3 Utility 10 | . . 1 . 2 . . 2 . . 1 . 1 3 Weapon 13 | . . . . 1 . . . . . 1 . 4 7 Highest Loss Streak 7 | . . 1 2 3 1 . 1 . . 2 . 6 7 To Critical Strikes 1 | . . . . . . . . . . . . . 1 Average Backups 13 | 2 5 13 17 19 19 16 16 8 9 8 7 7 7 Power . | . 1 1 1 1 1 . . . . . . . . Propulsion . | 1 2 2 1 . . 1 2 . . . . . . Utility 7 | . 1 5 8 10 11 9 8 5 5 4 3 3 3 Weapon 3 | . . 3 6 6 5 4 3 1 2 2 2 2 2 Tool/Special . | . . . . . . . . . . . . . . Unused Backups 22 | . . . 1 3 3 1 7 . . . . . 7 Power 1 | . . . . . . 1 . . . . . . . Propulsion 1 | . . . . . . . 1 . . . . . . Utility 10 | . . . 1 3 . . 3 . . . . . 3 Weapon 7 | . . . . . 2 . 3 . . . . . 2 Tool/Special 3 | . . . . . 1 . . . . . . . 2 Average Slot Usage (%) 63 | . 100 99 69 58 60 65 53 52 52 49 57 56 56 Engine 1 | . 14 4 . . . . 2 5 5 2 . . 2 Core 4 | . . 6 7 8 9 6 2 . . . . 5 4 Treads 6 | . 28 29 10 . . . 4 2 5 5 4 . . Wheel 4 | . . . 7 9 15 13 . . . . . . . Device 10 | . 14 14 7 4 3 19 16 11 11 10 10 14 9 Storage 8 | . 14 11 7 12 14 6 5 5 5 5 5 5 5 Processor 3 | . . . . . . 5 4 5 5 7 10 5 8 Hackware 1 | . . . . . . . . . . 2 5 5 5 Protection 1 | . . 3 7 4 . . 1 5 5 2 . . . Energy Gun 1 | . 13 . . . . . . . . 2 5 4 2 Ballistic Cannon 2 | . . 18 7 1 . . . . . . . . . Impact Weapon 6 | . . 11 7 8 9 6 5 5 5 5 5 4 2 Special Melee Weapon 4 | . . . 6 8 9 6 5 5 5 2 . . . Peak Build Rating 121 | 7 10 38 95 94 92 118 121 117 115 120 89 93 108 Average Rating 85 | 5 7 29 94 89 89 116 114 114 115 94 77 87 82 On Entrance 71 | . 7 10 38 94 88 92 118 113 115 115 72 85 60 Avg Prop Armor Cover (%) 6 | . . . 7 . . . 6 . . . . . . Naked Turns . | . . . . . . . . . . . . . . Heaviest Build 114 | 13 32 61 112 112 108 106 114 113 110 110 88 103 108 Greatest Support 146 | 40 40 60 60 26 26 38 63 87 87 87 146 146 146 Greatest Overweight (x) 35 | . . 1 4 6 35 2 3 3 1 1 . . 1 Average Overweight (x) 1 | . . . 2 5 4 2 1 1 1 . . . . Largest Inventory Capacity 20 | 8 15 20 20 20 20 20 20 20 20 20 20 20 20 Average Capacity 19 | 7 14 19 20 20 20 20 19 20 20 20 20 20 20 Most Carried 20 | 4 15 19 20 20 20 18 19 9 9 9 8 8 10 Average Carried 14 | 2 5 17 17 19 19 16 15 8 9 8 7 7 8 Final Capacity 20 | 8 15 20 20 20 20 20 20 20 20 20 20 20 20 Final Carried 20 | 4 14 19 20 20 20 16 8 9 9 7 8 7 10 Scrap Engine Consumption 151 | . . . . . . 26 38 11 . 3 14 2 57 Constructs Created 9 | . . . . . . . 2 . . 3 . . 4 Constructs Modified 28 | . . . . . . . 11 5 . 1 6 2 3 Class Distribution -------------------- 59% | Mutant 23% | Commander-Mutant 16% | Construct Dominant Class ---------------- Mutant | -10/Materials Mutant | -10/Subcaves Mutant | -8/Materials Mutant | -8/Storage Commander-Mutant | -8/Recycling Mutant | -6/Factory Mutant | -5/Factory Mutant | -5/Upper Caves Mutant | -5/Upper Caves Mutant | -4/Factory Construct | -4/Upper Caves Construct | -4/Upper Caves Mutant | -4/Warlord Resources | -11 -10 -10 -8 -8 -8 -6 -5 -5 -5 -4 -4 -4 -4 ----------- Run | Yrd Mat Sub Mat Sto Rec Fac Fac Upp Upp Fac Upp Upp War Matter Collected 4989 | 270 36 108 442 1496 879 292 908 117 . 94 261 42 44 Remotely . | . . . . . . . . . . . . . . Salvage Created 794 | 43 118 94 51 31 . . 101 . . 44 213 99 . Parts 38 | 8 7 2 5 2 . . . . . 1 11 2 . Haulers Intercepted . | . . . . . . . . . . . . . . Recyclers Shooed . | . . . . . . . . . . . . . . Parts Field Recycled . | . . . . . . . . . . . . . . Retrieved Matter . | . . . . . . . . . . . . . . Parts Self-Destructed 24 | . . 2 . . . . . 7 7 . 6 2 . Prevented 24 | . . . . . . . . 17 3 . 4 . . Parts Restored . | . . . . . . . . . . . . . . Kills | -11 -10 -10 -8 -8 -8 -6 -5 -5 -5 -4 -4 -4 -4 ------- Run | Yrd Mat Sub Mat Sto Rec Fac Fac Upp Upp Fac Upp Upp War Combat Hostiles Destroyed 21 | . 3 3 5 . . . . . . 2 6 2 . Melee 2 | . . . 1 . . . . . . . 1 . . Guns 5 | . 3 . . . . . . . . . 1 1 . Cannons 8 | . . 2 3 . . . . . . . 3 . . Classes Destroyed 8 | 1 1 1 1 1 . . 1 . . . 1 1 . Worker 2 | . . . . 2 . . . . . . . . . Tunneler 2 | 2 . . . . . . . . . . . . . Recycler 1 | . . . . . . . 1 . . . . . . Swarmer 11 | . . . 5 . . . . . . 2 4 . . Grunt 4 | . 3 . . . . . . . . . 1 . . Sentry 1 | . . . . . . . . . . . 1 . . Hunter 2 | . . . . . . . . . . . . 2 . Subdweller 3 | . . 3 . . . . . . . . . . . Best Kill Streak 4 | 1 3 1 3 1 . . 1 . . 2 4 2 . Combat Bots Only 4 | . 3 1 3 . . . . . . 2 4 2 . Max Kills in Single Turn 1 | 1 1 1 1 1 . . 1 . . 1 1 1 . Gunslinging . | . . . . . . . . . . . . . . Exploded . | . . . . . . . . . . . . . . Melee 1 | . . . 1 . . . . . . . 1 . . Uniques/NPCs Destroyed . | . . . . . . . . . . . . . . Combat | -11 -10 -10 -8 -8 -8 -6 -5 -5 -5 -4 -4 -4 -4 -------- Run | Yrd Mat Sub Mat Sto Rec Fac Fac Upp Upp Fac Upp Upp War Hostile Shots Fired 852 | . 31 17 64 30 7 15 35 . . 62 53 255 283 Missed 316 | . 6 2 18 10 2 11 8 . . 18 16 99 126 Hits 536 | . 25 15 46 20 5 4 27 . . 44 37 156 157 Projectile 536 | . 25 15 46 20 5 4 27 . . 44 37 156 157 AOE 6 | . . 2 . . . . 3 . . 1 . . . Critical Strikes 13 | . 1 1 . 1 . . 1 . . 1 . 2 6 Damage Taken 9477 | . 302 550 464 393 128 56 923 8 . 799 857 1712 3285 Core 1659 | . 57 95 72 64 57 18 129 . . 108 311 236 512 Absorbed by Shields 735 | . . . . . . . . . . . . 735 . Ignored by Resistances 14 | . . . 6 8 . . . . . . . . . Regen/Repaired (Parts) 2036 | . . . 38 193 52 11 750 182 . 48 272 268 222 Core Remaining (%) 77 | 100 . 39 . . 64 97 . . 87 . . . . Volleys Fired 67 | 7 20 7 10 . . . . . . . 12 8 3 Largest 2 | 2 2 2 1 . . . . . . . 2 2 1 Hottest 174 | 60 60 66 33 . . . . . . . 174 174 45 Shots Fired 113 | 14 38 8 10 . . . . . . . 24 16 3 Gun 75 | 14 38 . . . . . . . . . 12 8 3 Cannon 38 | . . 8 10 . . . . . . . 12 8 . Launcher . | . . . . . . . . . . . . . . Special . | . . . . . . . . . . . . . . Kinetic 57 | 7 20 8 10 . . . . . . . 9 . 3 Thermal 56 | 7 18 . . . . . . . . . 15 16 . Explosive . | . . . . . . . . . . . . . . Electromagnetic . | . . . . . . . . . . . . . . Robot Hit Streak 13 | 5 10 8 10 . . . . . . . 13 10 1 Robot Miss Streak 5 | 1 4 . 4 . . . . . . . 5 5 3 Penetration Max . | . . . . . . . . . . . . . . Secondary Targets . | . . . . . . . . . . . . . . Shots Hit Robots 93 | 10 26 11 10 2 . . 1 . . 3 16 13 1 Core Hits 32 | 3 9 3 4 1 . . . . . . 8 4 . Critical Kills 1 | . . . 1 . . . . . . . . . . Critical Parts Destroyed 6 | . . 1 1 . . . 1 . . . 1 2 . Critical Strikes 7 | . . 1 2 . . . 1 . . . 1 2 . Destroy 1 | . . . . . . . . . . . 1 . . Smash 6 | . . 1 2 . . . 1 . . . . 2 . Melee Attacks 65 | . . 15 16 6 2 . 4 . . 7 9 5 1 Impact 65 | . . 15 16 6 2 . 4 . . 7 9 5 1 Slashing . | . . . . . . . . . . . . . . Piercing . | . . . . . . . . . . . . . . Sneak Attacks 3 | . . . . 2 . . 1 . . . . . . Combat Hostiles . | . . . . . . . . . . . . . . Follow-up Attacks . | . . . . . . . . . . . . . . Damage Inflicted 2373 | 95 257 212 272 181 . . 90 . . 152 621 461 32 Guns 656 | 95 257 . . . . . . . . . 128 144 32 Cannons 758 | . . 123 107 . . . . . . . 384 144 . Explosions . | . . . . . . . . . . . . . . Melee 959 | . . 89 165 181 . . 90 . . 152 109 173 . Ramming . | . . . . . . . . . . . . . . Kinetic 677 | 31 96 123 107 . . . . . . . 288 . 32 Thermal 737 | 64 161 . . . . . . . . . 224 288 . Explosive . | . . . . . . . . . . . . . . Electromagnetic . | . . . . . . . . . . . . . . Impact 959 | . . 89 165 181 . . 90 . . 152 109 173 . Slashing . | . . . . . . . . . . . . . . Piercing . | . . . . . . . . . . . . . . Highest Corruption 5 | . . . . . . . 1 1 1 . . . 5 Average Corruption 1 | . . . . . . . 1 1 1 . . . 4 Corruption Purged . | . . . . . . . . . . . . . . Corruption Blocked . | . . . . . . . . . . . . . . Effects 10 | . . . . . . . 6 4 . . . . . Message Errors 3 | . . . . . . . 2 1 . . . . . Matter Fused 1 | . . . . . . . . 1 . . . . . Heat Flow Errors 1 | . . . . . . . . 1 . . . . . Energy Discharges 1 | . . . . . . . 1 . . . . . . Data Loss (minor) 2 | . . . . . . . 1 1 . . . . . Alerts 2 | . . . . . . . 2 . . . . . . Overload Shots . | . . . . . . . . . . . . . . Overflow Damage 429 | . . 25 48 68 . . 90 . . 12 71 115 . Projectiles 23 | . . . . . . . . . . . 23 . . Explosions . | . . . . . . . . . . . . . . Melee 406 | . . 25 48 68 . . 90 . . 12 48 115 . Knockbacks 13 | . . 3 2 . . . . . . 2 3 3 . Impact 8 | . . 1 1 . . . . . . 2 1 3 . Kinetic 4 | . . 2 1 . . . . . . . 1 . . Secondary 1 | . . . . . . . . . . . 1 . . Self-Inflicted Damage . | . . . . . . . . . . . . . . Shots . | . . . . . . . . . . . . . . Rammed . | . . . . . . . . . . . . . . Targets Rammed . | . . . . . . . . . . . . . . Kicked . | . . . . . . . . . . . . . . Crushed . | . . . . . . . . . . . . . . Highest Temperature 548 | 40 186 . . . . . . 128 . . 548 378 361 Average Temperature 131 | 19 77 . . . . . . 66 . . 168 169 151 Received Heat Transfer 1141 | . 186 . 27 126 36 6 33 20 . . 48 30 629 Effects 5 | . . . . . . . . . . . 5 . . Shutdowns 1 | . . . . . . . . . . . 1 . . Energy Bleed 1 | . . . . . . . . . . . 1 . . Matter Decay 1 | . . . . . . . . . . . 1 . . Damage (minor) 1 | . . . . . . . . . . . 1 . . Damage (core) 1 | . . . . . . . . . . . 1 . . Siege Activations . | . . . . . . . . . . . . . . Martial Activations . | . . . . . . . . . . . . . . Shielding Activations . | . . . . . . . . . . . . . . Robots Disrupted . | . . . . . . . . . . . . . . Combat Hostiles . | . . . . . . . . . . . . . . Robots Corrupted 6 | . . 1 1 . . . . . . 2 1 1 . Combat Hostiles 6 | . . 1 1 . . . . . . 2 1 1 . Parts Fried 8 | . . 1 1 . . . 2 . . 1 3 . . Impact Corruptions 14 | . . 1 3 2 . . 2 . . 2 2 2 . Robots Melted . | . . . . . . . . . . . . . . Combat Hostiles . | . . . . . . . . . . . . . . Parts Melted . | . . . . . . . . . . . . . . Heat Transferred 710 | 150 375 . . . . . . . . . 74 111 . Parts Sabotaged . | . . . . . . . . . . . . . . Parts Stolen . | . . . . . . . . . . . . . . Parts Stripped . | . . . . . . . . . . . . . . Power Chain Reactions . | . . . . . . . . . . . . . . Alert | -11 -10 -10 -8 -8 -8 -6 -5 -5 -5 -4 -4 -4 -4 ------- Run | Yrd Mat Sub Mat Sto Rec Fac Fac Upp Upp Fac Upp Upp War Maximum Alert Level 1 | . . . . . . . 1 . . . . . . Low Security (%) 99 | 100 100 . 100 100 100 100 97 . . 100 . . . Level 1 . | . . . . . . . 2 . . . . . . Level 2 . | . . . . . . . . . . . . . . Level 3 . | . . . . . . . . . . . . . . Level 4 . | . . . . . . . . . . . . . . Level 5 . | . . . . . . . . . . . . . . High Security . | . . . . . . . . . . . . . . Max Security . | . . . . . . . . . . . . . . Peak Influence 215 | 5 70 . 64 114 2 79 215 . . 126 . . . Initial 126 | . . . . 6 . . 14 . . 126 . . . Average 15 | . 13 . 16 21 . 11 21 . . 36 . . . Influence Increases 2191 | 10 80 . 204 348 2 127 592 408 63 82 150 110 15 Destroy 0b10 Robot/C 1340 | . 60 . 160 160 . 60 360 300 40 40 120 40 . Destroy 0b10 Robot/NC 45 | 10 . . . 20 . . 10 . . 5 . . . Destroy Leader 296 | . 20 . 30 62 . 30 92 40 10 2 . 10 . Allied During Kill 278 | . . . 4 41 . 36 112 68 13 4 . . . Successful Hack 21 | . . . 6 5 . . 10 . . . . . . Disable Machine 60 | . . . . 45 . . . . . 15 . . . Destroy Structure 31 | . . . 4 . 2 1 8 . . 16 . . . Lose Combat Pursuer 120 | . . . . 15 . . . . . . 30 60 15 Influence Decreases 2191 | 10 80 . 188 364 2 96 412 435 46 283 83 147 45 Entered New Map 260 | . . . . 10 . . 17 79 36 75 . 13 30 Time Decay 1669 | 10 80 . 164 334 2 76 282 356 10 142 83 124 6 Lost Part 60 | . . . . . . . 20 . . 21 . 10 9 Lost Ally 202 | . . . 24 20 . 20 93 . . 45 . . . Squads Dispatched 13 | . 1 . 1 2 . 2 6 . . . . 1 . Investigation . | . . . . . . . . . . . . . . Extermination 4 | . . . . . . 1 3 . . . . . . Reinforcement 4 | . 1 . 1 2 . . . . . . . . . Assault 3 | . . . . . . . 2 . . . . 1 . Garrison 2 | . . . . . . 1 1 . . . . . . Intercept . | . . . . . . . . . . . . . . Searches Triggered . | . . . . . . . . . . . . . . Construction Impeded . | . . . . . . . . . . . . . . Haulers Reinforced . | . . . . . . . . . . . . . . Active Scanning Responses . | . . . . . . . . . . . . . . Cargo Convoy Interrupts . | . . . . . . . . . . . . . . Stealth | -11 -10 -10 -8 -8 -8 -6 -5 -5 -5 -4 -4 -4 -4 --------- Run | Yrd Mat Sub Mat Sto Rec Fac Fac Upp Upp Fac Upp Upp War Distress Signals 8 | . . . 2 3 1 . . . . 1 . . 1 Communications Jammed . | . . . . . . . . . . . . . . Distress Signals . | . . . . . . . . . . . . . . Times Spotted 153 | . 10 5 17 23 7 3 14 12 1 6 8 20 27 Peak Tracking Total 16 | . 4 1 4 5 2 1 2 6 1 6 5 16 11 Tactical Retreats 8 | . . . . 1 1 . . . . . 2 3 1 Traps | -11 -10 -10 -8 -8 -8 -6 -5 -5 -5 -4 -4 -4 -4 ------- Run | Yrd Mat Sub Mat Sto Rec Fac Fac Upp Upp Fac Upp Upp War Traps Triggered 4 | . . 3 . 1 . . . . . . . . . Indirectly . | . . . . . . . . . . . . . . Trap Hack Attempts . | . . . . . . . . . . . . . . Triggered . | . . . . . . . . . . . . . . Disarmed . | . . . . . . . . . . . . . . Reprogrammed . | . . . . . . . . . . . . . . Reused . | . . . . . . . . . . . . . . Traps Extracted . | . . . . . . . . . . . . . . Installed . | . . . . . . . . . . . . . . Triggered . | . . . . . . . . . . . . . . Machines | -11 -10 -10 -8 -8 -8 -6 -5 -5 -5 -4 -4 -4 -4 ---------- Run | Yrd Mat Sub Mat Sto Rec Fac Fac Upp Upp Fac Upp Upp War Machines Disabled 9 | . . 1 . 3 . . . 4 . 1 . . . Max in Single Turn 1 | . . 1 . 1 . . . . . . . . . Garrison Access 1 | . . . . . . . 1 . . . . . . Machines Repaired . | . . . . . . . . . . . . . . Machines Dismantled . | . . . . . . . . . . . . . . Machines Sabotaged . | . . . . . . . . . . . . . . Overloaded Fab Kills . | . . . . . . . . . . . . . . Hacking | -11 -10 -10 -8 -8 -8 -6 -5 -5 -5 -4 -4 -4 -4 --------- Run | Yrd Mat Sub Mat Sto Rec Fac Fac Upp Upp Fac Upp Upp War Machines Accessed 18 | . 1 2 2 5 2 1 1 . . 1 1 . 2 Terminals 10 | . 1 . 2 5 . . 1 . . 1 . . . Fabricators . | . . . . . . . . . . . . . . Repair Stations . | . . . . . . . . . . . . . . Recycling Units 2 | . . . . . 1 1 . . . . . . . Scanalyzers . | . . . . . . . . . . . . . . Garrison Access . | . . . . . . . . . . . . . . Total Hacks 37 | . 1 4 4 11 6 2 2 . . 2 1 . 4 Successful 19 | . . 4 1 2 3 2 2 . . . 1 . 4 Failed 18 | . 1 . 3 9 3 . . . . 2 . . . Catastrophic 2 | . 1 . . 1 . . . . . . . . . Database Lockouts . | . . . . . . . . . . . . . . Manual 11 | . 1 . 2 4 . . 2 . . 2 . . . Terminals 20 | . 1 . 4 11 . . 2 . . 2 . . . Fabricators . | . . . . . . . . . . . . . . Repair Stations . | . . . . . . . . . . . . . . Recycling Units 5 | . . . . . 3 2 . . . . . . . Scanalyzers . | . . . . . . . . . . . . . . Garrison Access . | . . . . . . . . . . . . . . Terminal Hacks 14 | . . 4 1 1 3 . . . . . 1 . 4 Record 7 | . . 3 . . 1 . . . . . . . 3 Open Door 3 | . . . . 1 . . . . . . 1 . 1 Recycling Unit Index 1 | . . . 1 . . . . . . . . . . Proto ID Catalog 1 | . . 1 . . . . . . . . . . . Release Object 2 | . . . . . 2 . . . . . . . . Fabricator Hacks . | . . . . . . . . . . . . . . Repair Station Hacks . | . . . . . . . . . . . . . . Recycling Unit Hacks 2 | . . . . . . 2 . . . . . . . Retrieve Matter 1 | . . . . . . 1 . . . . . . . Retrieve Components 1 | . . . . . . 1 . . . . . . . Scanalyzer . | . . . . . . . . . . . . . . Garrison Access Hacks . | . . . . . . . . . . . . . . Unauthorized Hacks 2 | . . . . 1 . . 1 . . . . . . Terminals 2 | . . . . 1 . . 1 . . . . . . Botnet 2 | . . . . 1 . . 1 . . . . . . Fabricators . | . . . . . . . . . . . . . . Repair Stations . | . . . . . . . . . . . . . . Recycling Units . | . . . . . . . . . . . . . . Scanalyzers . | . . . . . . . . . . . . . . Garrison Access . | . . . . . . . . . . . . . . Data Cores Recovered 1 | . . . . 1 . . . . . . . . . Used . | . . . . . . . . . . . . . . Hacking Detections 10 | . 1 . 2 4 1 . 1 . . 1 . . . Full Trace Events . | . . . . . . . . . . . . . . Feedback Events . | . . . . . . . . . . . . . . Feedback Blocked . | . . . . . . . . . . . . . . Robot Schematics Acquired . | . . . . . . . . . . . . . . Robots Built . | . . . . . . . . . . . . . . Authchips . | . . . . . . . . . . . . . . Time . | . . . . . . . . . . . . . . Total Robot Build Rating . | . . . . . . . . . . . . . . Part Schematics Acquired . | . . . . . . . . . . . . . . Parts Built . | . . . . . . . . . . . . . . Authchips . | . . . . . . . . . . . . . . Time . | . . . . . . . . . . . . . . Total Part Build Rating . | . . . . . . . . . . . . . . Part Studies Acquired . | . . . . . . . . . . . . . . Parts Repaired . | . . . . . . . . . . . . . . Time . | . . . . . . . . . . . . . . Parts Recycled . | . . . . . . . . . . . . . . Recycled Matter . | . . . . . . . . . . . . . . Retrieved Matter . | . . . . . . . . . . . . . . Retrieved Components 2 | . . . . . . 2 . . . . . . . Parts Scanalyzed . | . . . . . . . . . . . . . . Part Schematics Acquired . | . . . . . . . . . . . . . . Parts Damaged . | . . . . . . . . . . . . . . Bothacking | -11 -10 -10 -8 -8 -8 -6 -5 -5 -5 -4 -4 -4 -4 ------------ Run | Yrd Mat Sub Mat Sto Rec Fac Fac Upp Upp Fac Upp Upp War Used RIF Installer . | . . . . . . . . . . . . . . Robots Hacked . | . . . . . . . . . . . . . . Non-combat . | . . . . . . . . . . . . . . Combat . | . . . . . . . . . . . . . . Robot Hacks Applied . | . . . . . . . . . . . . . . Relay Couplers Released 1 | . . . . . . . 1 . . . . . . Machine Destruction 1 | . . . . . . . 1 . . . . . . Fabnet Peak Effective % . | . . . . . . . . . . . . . . Robots Rewired . | . . . . . . . . . . . . . . Allies Hacked 3 | . . . . . . . 3 . . . . . . Hacks Repelled . | . . . . . . . . . . . . . . Allies | -11 -10 -10 -8 -8 -8 -6 -5 -5 -5 -4 -4 -4 -4 -------- Run | Yrd Mat Sub Mat Sto Rec Fac Fac Upp Upp Fac Upp Upp War Total Allies 11 | . . . . 10 . . . . . 1 . . . Largest Group 10 | . . . . 10 5 5 3 . . 1 . . . Highest-Rated Group 173 | . . . . 173 93 93 61 . . 12 . . . Highest-Rated Ally 29 | . . . . 29 29 29 29 . . 12 . . . Total Orders . | . . . . . . . . . . . . . . Ally Attacks 253 | . . . 16 61 30 30 71 32 3 10 . . . Total Damage 7333 | . . . 307 978 489 766 2243 1983 91 476 . . . Kills 61 | . . . 3 12 6 3 19 15 2 1 . . . Allies Corrupted 1 | . . . . 1 . . . . . . . . . Allies Melted 1 | . . . . . . . . . . . . . 1 Borg Created 28 | . . . 7 7 1 4 5 1 . 3 . . . Largest Collective 6 | . . . 2 5 6 4 4 3 . 2 . . . Intel | -11 -10 -10 -8 -8 -8 -6 -5 -5 -5 -4 -4 -4 -4 ------- Run | Yrd Mat Sub Mat Sto Rec Fac Fac Upp Upp Fac Upp Upp War Active Infowar (turns) 5071 | 43 435 971 . . 925 684 2013 . . . . . . Terrain 3622 | . . . . . 925 684 2013 . . . . . . Seismic 1449 | 43 435 971 . . . . . . . . . . . Robot Analysis Total . | . . . . . . . . . . . . . . Derelict Logs Recovered 5 | . . 3 . . . . . . . . . 2 . Drone Launches . | . . . . . . . . . . . . . . Drone Recoveries . | . . . . . . . . . . . . . . Exploration | -11 -10 -10 -8 -8 -8 -6 -5 -5 -5 -4 -4 -4 -4 ------------- Run | Yrd Mat Sub Mat Sto Rec Fac Fac Upp Upp Fac Upp Upp War Turns Passed 13379 | 143 435 1445 791 1545 2107 684 2108 810 38 480 1133 551 1109 Spaces Moved 7055 | 71 147 707 354 780 1055 547 745 312 19 253 727 438 900 Core 6 | 3 . . . . 3 . . . . . . . . Treads 2864 | 68 147 707 142 . . . 667 185 19 253 676 . . Legs 22 | . . . . . . . . 22 . . . . . Wheels 2640 | . . . 212 780 1052 547 49 . . . . . . Hover 134 | . . . . . . . 29 105 . . . . . Flight 1389 | . . . . . . . . . . . 51 438 900 Fastest Speed 50 | 50 160 160 150 150 150 120 120 207 207 150 117 117 117 Average Speed 172 | 155 160 191 186 182 162 120 276 256 207 178 147 117 117 Slowest Speed 1800 | 160 160 240 240 190 1800 120 419 409 207 207 150 117 174 Overloaded Moves . | . . . . . . . . . . . . . . Propulsion Burnouts . | . . . . . . . . . . . . . . Robots Hopped . | . . . . . . . . . . . . . . Potential Cave-ins 7 | . . . . . . . . . . . . . 7 Cave-ins Triggered . | . . . . . . . . . . . . . . Exploration Rate (%) 43 | 5 25 47 25 93 99 6 18 52 9 6 80 62 87 Regions Visited 13 Branch Regions 8 Pre-discovered Areas 3 | . . 2 . . . . . . . . . 1 . Known Exits Taken . | . . . . . . . . . . . . . . Unknown Exits Taken 13 | 1 1 1 1 1 1 1 1 1 1 1 1 1 . Scrap Searched 8 | . . 5 . . . . . 1 . . 1 1 . Spaces Dug 10 | . . 1 3 . 2 . 3 . . 1 . . . Terrain Destroyed 21 | . . 1 4 . 2 . 3 . . 1 4 5 1 Melee 10 | . . 1 3 . 2 . 3 . . 1 . . . Projectile 11 | . . . 1 . . . . . . . 4 5 1 AOE . | . . . . . . . . . . . . . . Terrain Rammed . | . . . . . . . . . . . . . . Walls Destroyed . | . . . . . . . . . . . . . . Machines Disabled . | . . . . . . . . . . . . . . Actions | -11 -10 -10 -8 -8 -8 -6 -5 -5 -5 -4 -4 -4 -4 --------- Run | Yrd Mat Sub Mat Sto Rec Fac Fac Upp Upp Fac Upp Upp War Total 8016 | 88 314 757 435 882 1445 567 777 319 18 264 749 453 948 Wait 694 | . 132 9 37 70 380 10 11 5 . . 1 2 37 Move 7042 | 70 146 706 353 779 1054 546 744 311 18 252 726 437 900 Hop . | . . . . . . . . . . . . . . Pick Up 50 | 4 10 10 7 7 2 1 4 1 . . 1 . 3 Fast Attach 17 | 7 . . . 2 2 . 2 . . . . . 4 Attach 16 | . 2 5 2 1 . 3 1 . . 2 . . . Detach 6 | . 2 . 1 . . . 3 . . . . . . Swap 9 | . 1 1 1 3 1 . 1 . . . . 1 . Drop 18 | . 1 4 1 7 3 1 1 . . . . . . Fire 67 | 7 20 7 10 . . . . . . . 12 8 3 Melee 65 | . . 15 16 6 2 . 4 . . 7 9 5 1 Ram . | . . . . . . . . . . . . . . Kick . | . . . . . . . . . . . . . . Crush . | . . . . . . . . . . . . . . Escape Stasis . | . . . . . . . . . . . . . . Rewire 3 | . . . . . . 2 . 1 . . . . . Trap . | . . . . . . . . . . . . . . Miscellaneous 29 | . . . 7 7 1 4 6 1 . 3 . . . Route ------- -11/Scrapyard -10/Materials (discovered 2 exits: [*Min] / *Sub) -10/Subcaves -8/Materials -8/Storage (discovered 2 exits: [*Fac] / *Rec) -8/Recycling -6/Factory -5/Factory -5/Upper Caves -5/Upper Caves -4/Factory -4/Upper Caves -4/Upper Caves -4/Warlord History --------- Turn | Location | Event 23 | -11/Scrapyard | Discovered new exit (range 16) 144 | -11/Scrapyard | Entered Materials 300 | -10/Materials | Build established: Mutant 486 | -10/Materials | Discovered new exit (range 8) 505 | -10/Materials | Discovered new exit (range 16) 579 | -10/Materials | Entered Subcaves 687 | -10/Subcaves | Visited Clippyterm 691 | -10/Subcaves | Learned location of Extension (-5) 741 | -10/Subcaves | Learned location of Zion (-6) 768 | -10/Subcaves | Visited 4L-MR0's lab 786 | -10/Subcaves | Found Prototype Special Melee Weapon 795 | -10/Subcaves | Found Meta Core 952 | -10/Subcaves | Learned 2 Materials zone layouts 1003 | -10/Subcaves | Shifting Twisted Machinery released Sub. Beam Cannon 1012 | -10/Subcaves | Core integrity fell below 50% 1021 | -10/Subcaves | Shifting Twisted Machinery released Sub. Beam Cannon 1040 | -10/Subcaves | Attached Meta Core, gained temporary slots: Propulsion, Utility, Weapon 1359 | -10/Subcaves | Learned Materials emergency access door positions 1424 | -10/Subcaves | Shifting Twisted Machinery released Mak. Thermal Plating 1427 | -10/Subcaves | A swath of the cavern ceiling suddenly collapsed 1769 | -10/Subcaves | Discovered new exit (range 7) 2024 | -10/Subcaves | Entered Materials 2024 | -8/Materials | Evolved 4 slots: Weapon x4 2025 | -8/Materials | Identified 1B-0RG's Assimilator 2127 | -8/Materials | Assimilating Commando 3a into Collective. 2217 | -8/Materials | Assimilating Technician 3a into Collective. 2379 | -8/Materials | Assimilating Commando 3b into Collective. 2403 | -8/Materials | Assimilating Trooper 3a into Collective. 2422 | -8/Materials | Assimilating Trooper 3b into Collective. 2433 | -8/Materials | Assimilating Pest 3a into Collective. 2466 | -8/Materials | Lost 4 allies 2738 | -8/Materials | Discovered new exit (range 11) 2797 | -8/Materials | Assimilating Defender 3a into Collective. 2815 | -8/Materials | Entered Storage 2815 | -8/Storage | Accompanied by 1 ally 2906 | -8/Storage | Met 01-MTF 2943 | -8/Storage | Assimilating Technician 3b into Collective. 3042 | -8/Storage | Assimilating Defender 3b into Collective. 3049 | -8/Storage | Assimilating Defender 3c into Collective. 3073 | -8/Storage | Lost 3 parts (1n1u1w) 3573 | -8/Storage | Assimilating Technician 3c into Collective. 3614 | -8/Storage | Assisted by bots powering up and referring to "LRC-V3" 3660 | -8/Storage | Assimilating Defender 3d into Collective. 3757 | -8/Storage | Discovered new exit (range 3) 3823 | -8/Storage | Lost 6 allies 3912 | -8/Storage | Build established: Commander-Mutant 3969 | -8/Storage | Discovered new exit (range 15) 3978 | -8/Storage | Assimilating Defender 3e into Collective. 3987 | -8/Storage | Assimilating Defender 3f into Collective. 4360 | -8/Storage | Entered Recycling 4360 | -8/Recycling | Accompanied by 11 allies (01-MTF) 4891 | -8/Recycling | Discovered new exit (range 20) 4979 | -8/Recycling | Assimilating B4-EI0(R) into Collective. 6259 | -8/Recycling | Entered Scraplab 6305 | -8/Recycling | Found Prototype Device 6467 | -8/Recycling | Entered Factory 6467 | -6/Factory | Accompanied by 10 allies 6467 | -6/Factory | Evolved 4 slots: Utility x4 6467 | -6/Factory | Identified Scrap Engine 6714 | -6/Factory | Discovered new exit (range 22) 6738 | -6/Factory | Assimilating Guardian 5a into Collective. 6765 | -6/Factory | Lost 6 allies 6906 | -6/Factory | Assimilating Guardian 5b into Collective. 7000 | -6/Factory | Build established: Mutant 7009 | -6/Factory | Garrison activated, responded to threat 7010 | -6/Factory | Assimilating Informer 5a into Collective. 7076 | -6/Factory | Assimilating Engineer 5a into Collective. 7151 | -6/Factory | Entered another Factory area 7151 | -5/Factory | Accompanied by 7 allies 7151 | -5/Factory | Evolved 2 slots: Propulsion x1, Utility x1 8357 | -5/Factory | Assimilating Serf 6a into Collective. 8515 | -5/Factory | Assimilating Excavator 6a into Collective. 8634 | -5/Factory | Lost 4 allies 8634 | -5/Factory | Assimilating Sage 6a into Collective. 8637 | -5/Factory | Assimilating Sage 6b into Collective. 8835 | -5/Factory | Assimilating Sage 6c into Collective. 9143 | -5/Factory | Discovered new exit (range 16) 9155 | -5/Factory | Garrison activated, responded to threat 9259 | -5/Factory | Entered Upper Caves 9259 | -5/Upper Caves | Accompanied by 2 allies 9815 | -5/Upper Caves | Discovered new exit (range 14) 9892 | -5/Upper Caves | Assimilating Soldier 6a into Collective. 10069 | -5/Upper Caves | Entered another Upper Caves area 10069 | -5/Upper Caves | Accompanied by 3 allies 10084 | -5/Upper Caves | Discovered new exit (range 9) 10107 | -5/Upper Caves | Entered Factory 10107 | -4/Factory | Accompanied by 3 allies 10107 | -4/Factory | Evolved 2 slots: Power x1, Propulsion x1 10138 | -4/Factory | Discovered new exit (range 14) 10368 | -4/Factory | Assimilating Virus 7a into Collective. 10371 | -4/Factory | Assimilating Virus 7b into Collective. 10376 | -4/Factory | Assimilating Virus 7c into Collective. 10410 | -4/Factory | Lost 5 allies 10587 | -4/Factory | Entered Upper Caves 10809 | -4/Upper Caves | Build established: Construct 11398 | -4/Upper Caves | Encountered a Warlord checkpoint 11406 | -4/Upper Caves | Attracted the attention of an 0b10 checkpoint 11601 | -4/Upper Caves | Discovered new exit (range 15) 11720 | -4/Upper Caves | Entered another Upper Caves area 11745 | -4/Upper Caves | Learned 8 Research zone layouts 11888 | -4/Upper Caves | Spotted B-86 Titan 11932 | -4/Upper Caves | Learned location of Quarantine (-2) 12214 | -4/Upper Caves | Attracted the attention of an 0b10 outpost 12237 | -4/Upper Caves | Core integrity fell below 50% 12257 | -4/Upper Caves | Discovered new exit (range 16) 12260 | -4/Upper Caves | Attracted the attention of an 0b10 checkpoint 12271 | -4/Upper Caves | Entered Warlord 12285 | -4/Warlord | Lost 6 parts (1p1u4w) 12528 | -4/Warlord | Found Signal Generator 12564 | -4/Warlord | Build established: Mutant 12597 | -4/Warlord | Received a Watcher feed algorithm from an ecstatic Tinkerer 12689 | -4/Warlord | Met Warlord 12699 | -4/Warlord | Warlord's base attacked by MAIN.C 12807 | -4/Warlord | Found Prototype Launcher 12807 | -4/Warlord | Identified Vortex Catalyst Activator 13049 | -4/Warlord | Warlord forces counterattacked 13094 | -4/Warlord | Build established: Construct 13179 | -4/Warlord | Spotted B-90 Cyclops 13183 | -4/Warlord | Spotted Executioner 13183 | -4/Warlord | Spotted Executioner 13195 | -4/Warlord | Spotted Executioner 13222 | -4/Warlord | Spotted B-90 Cyclops 13232 | -4/Warlord | Spotted B-86 Titan 13233 | -4/Warlord | Lost 13 allies 13276 | -4/Warlord | Lost 7 parts (2p1n1u3w) 13309 | -4/Warlord | Lost 4 allies 13354 | -4/Warlord | Spotted Executioner 13367 | -4/Warlord | Core integrity fell below 20% 13374 | -4/Warlord | Warlord base infiltrated, sounded retreat 13380 | -4/Warlord | Destroyed by P-80 Master with Gamma Rifle Last Messages --------------- 13369_ Penetrated by Slug. 13369_ Slug penetrates Earth. 13369_ Penetrated by Slug. 13370_ Ballistic Autocannon Construct/G destroyed. 13370_ Arm. Scrap Engine damaged due to network destabilization (-9). 13371_ P-70 Sage resets P-70 Sage, system corruption cleaned. 13371_ Penetrated by Slug. 13372_ Flying Impulse-VTOL Exoskeleton destroyed. 13372_ Flying Impulse-VTOL Exoskeleton core remains intact and functional. 13372_ Slug penetrates Wall. 13372_ Mak. Hammer destroyed. 13372_ Slug penetrates Wall. 13374_ ANNOUNCEMENT: Base interior infiltrated, regroup at designated outer cave rendezvous points. Map ----- +----------------------------------------------------+ | ] #??????????????????????????##??????????? | | & #????????????????????????### ??????????? | | #????????????????????? ?? ???????##?? | | #?????????????????????? ### #???? #?? | | ####?????????????????????? " ??? ?? | | #???????"??????????????????# * " ??? ?? | | #??????""??????????????????# ? % "?? | | #?????#""#####???######?????# #? *% "?? | | #?????#""# # ##### ## #####??# # " % =#? | | #######"""""""=!# ####"" #" " !%#? | | " ""=[[![!=[ #= # ## "## ]#?? | | " !""[!!%%[*=!! [=!][ ## " #??? | | ===[""*!%[!!!=%!%=![*[==* # #"! = #???? | | %%/^%==%![%=[=!=!%=[%%%!! % """=%!%= ##??? | | ! /%!%*[%%=%=%!!%!%[%=%%%[=[% [;! #??? | | /^% %! !%!!/%=%=%*![!![% ! ;"" #??? | | %/% ^!%!!*%!%%!%! !/ ! ;" " " #? | | "! !"!!!!!*!!!! =[= ! %### " "#?? | | " ""! !%|!*! " #?### #?? | | % " ""%!= #"]" ## #### # #?? | | #"#"###"""#"## ## ###sp#?# #?? | | #####?#"""#### ## # # ### ### #?? | | #?????#""##??####??## ## ; ### ##?? | | #?????#""#??????????#####;; ;### #??? | | #?????#""#?????????????# ; ; ### ##??? | | #??????""??????????????# @ ;##?## #???? | | #??????????????????????##; ;;#???# #???? | | #??????????????????????? ; ; #???## ##??? | | #??????????????????????##; ;##???## #??? | | ##??????????????????????# ;#??## #??? | | #?????????????????????? #??# #??? | | ##????????????????????? #; ??# #??? | | #???????????????????? ###; ?# #??? | | ##??????????????????? ???;; ;# #??? | | #???????????????????? ??? ; ;# ##??? | | ##??????????????????? ## ??? ;; #???? | | ?????????????????????#?# ???# #; ##???? | | ??????????????????????? ????#########????? | | ????????????????????????#?????????????????? | | ??????????????????????????????????????????? | | ??????????????????????????????????????????? | | ??????????????????????????????????????????? | | ??????????????????????????????????????????? | | ??????????????????????????????????????????? | | ??????????????????????????????????????????? | | ??????????????????????????????????????????? | | ??????????????????????????????????????????? | | ??????????????????????????????????????????? | | ??????????????????????????????????????????? | | ??????????????????????????????????????????? | +----------------------------------------------------+ Best States ------------- Heat Dissipation 45 Energy Generation 33 Energy Capacity 820 Matter Stores 500 Matter Capacity 500 Sight Range 16 Terrain Scan Range 16 Terrain Scan Density 110 Additional Mass Support 12 Armor Coverage 150 Resistance: TH 10 Evasion (%) 50 Targeting Accuracy 18 Recoil Reduction 4 Authchip Count 1 Item Schematics ----------------- None Robot Schematics ------------------ None Fabricated ------------ Nothing Repaired ---------- Nothing Studied --------- None Alien Tech Used ----------------- None Achievements -------------- Irresistible Scrap Not So Scrappy Challenges ------------ None Game ------ Seed FieldthrustRecyclingCleaver Manual? 0 Play Time 01:25:34 Cumulative 60.7 hours Start 2026.03.11 @ 21:02:12 End 2026.03.11 @ 23:13:58 Sessions 1 Manual Loads 0 Difficulty Rogue Special Mode None Game No. 138 Rogue 138 Adventurer 0 Explorer 0 Win Type - Total 0 Types 0/0/0/0/0/0/0/0/0/0 Lore% 36 Gallery% 42 Achievement% 33 Wizard Run 0 Options --------- Layout 2 ASCII 0 Keyboard 1 Movement Arrows Keybinds 0 Fullscreen 1 Font 24/Smallcaps Map View 50x44 Zoom Use 0% Tactical HUD 1 Map Filters NONE Filters NONE Steam 1 RUN: 818e914e-8ce2-40ec-80c1-eea5c3372551